[Event "Live Chess"]
[Site "Chess.com"]
[Date "2023.05.20"]
[Round "-"]
[White "AttackingSnowLeopard"]
[Black "Pandreq"]
[Result "1-0"]
[WhiteElo "2082"]
[BlackElo "1268"]
[TimeControl "300"]
[EndTime "11:19:20 PDT"]
[Termination "AttackingSnowLeopard won by checkmate"]

1. d4 {[%clk 0:04:58.3]} 1... d5 {[%clk 0:04:58.6]} 2. c4 {[%clk 0:04:57.6]}
2... c6 {[%clk 0:04:57.8]} 3. e3 {[%clk 0:04:56.1]} 3... Nf6 {[%clk 0:04:57]} 4.
Nf3 {[%clk 0:04:55.8]} 4... Bg4 {[%clk 0:04:55.6]} 5. Qb3 {[%clk 0:04:52.9]}
5... b6 {[%clk 0:04:51.7]} 6. Ne5 {[%clk 0:04:51.3]} 6... Nbd7 {[%clk
0:04:47.4]} 7. Nxg4 {[%clk 0:04:47.9]} 7... Nxg4 {[%clk 0:04:46.2]} 8. Be2
{[%clk 0:04:47.4]} 8... Ngf6 {[%clk 0:04:44.9]} 9. Nc3 {[%clk 0:04:46.9]} 9...
e6 {[%clk 0:04:39]} 10. O-O {[%clk 0:04:45.6]} 10... Rb8 {[%clk 0:04:34.9]} 11.
f3 {[%clk 0:04:43.8]} 11... Bd6 {[%clk 0:04:28.2]} 12. e4 {[%clk 0:04:41.2]}
12... c5 {[%clk 0:04:18.2]} 13. Nb5 {[%clk 0:04:33.5]} 13... dxc4 {[%clk
0:04:08.1]} 14. Nxd6+ {[%clk 0:04:30]} 14... Ke7 {[%clk 0:04:02.1]} 15. Nxc4
{[%clk 0:04:24.7]} 15... b5 {[%clk 0:03:55.6]} 16. Ne5 {[%clk 0:04:22]} 16... c4
{[%clk 0:03:52.8]} 17. Qb4+ {[%clk 0:04:20.6]} 17... Ke8 {[%clk 0:03:47.8]} 18.
Nc6 {[%clk 0:04:19.1]} 18... Qc7 {[%clk 0:03:35.8]} 19. Qe7# {[%clk 0:04:15.8]}
1-0

[Event "Live Chess"]
[Site "Chess.com"]
[Date "2023.05.20"]
[Round "-"]
[White "stevegleds"]
[Black "domrobson"]
[Result "0-1"]
[WhiteElo "614"]
[BlackElo "1756"]
[TimeControl "300"]
[EndTime "11:19:23 PDT"]
[Termination "domrobson won by resignation"]

1. e4 {[%clk 0:04:57.9]} 1... e5 {[%clk 0:04:59.4]} 2. Nf3 {[%clk 0:04:56.1]}
2... Nc6 {[%clk 0:04:58.7]} 3. Nc3 {[%clk 0:04:54.4]} 3... Nf6 {[%clk
0:04:58.1]} 4. Bc4 {[%clk 0:04:52.7]} 4... Nxe4 {[%clk 0:04:53.8]} 5. Nxe4
{[%clk 0:04:50.3]} 5... d5 {[%clk 0:04:52.8]} 6. Qe2 {[%clk 0:04:37.3]} 6...
dxc4 {[%clk 0:04:40]} 7. Qxc4 {[%clk 0:04:36]} 7... Be7 {[%clk 0:04:35.6]} 8. d3
{[%clk 0:04:33.6]} 8... O-O {[%clk 0:04:34.2]} 9. O-O {[%clk 0:04:30.6]} 9...
Be6 {[%clk 0:04:32.1]} 10. Qc3 {[%clk 0:04:20.9]} 10... Bb4 {[%clk 0:04:26.2]}
11. Qb3 {[%clk 0:04:16.1]} 11... Bxb3 {[%clk 0:04:24.5]} 0-1

[Event "Live Chess"]
[Site "Chess.com"]
[Date "2023.05.20"]
[Round "-"]
[White "jagbama"]
[Black "MarkLim1"]
[Result "0-1"]
[WhiteElo "1137"]
[BlackElo "1620"]
[TimeControl "300"]
[EndTime "11:19:39 PDT"]
[Termination "MarkLim1 won on time"]

1. e4 {[%clk 0:04:55.1]} 1... e6 {[%clk 0:04:58.7]} 2. Nf3 {[%clk 0:04:53.8]}
2... d5 {[%clk 0:04:57.9]} 3. e5 {[%clk 0:04:51.7]} 3... c5 {[%clk 0:04:56.8]}
4. c3 {[%clk 0:04:50.5]} 4... Nc6 {[%clk 0:04:54.4]} 5. d4 {[%clk 0:04:47.1]}
5... Nge7 {[%clk 0:04:53.1]} 6. Be3 {[%clk 0:04:43]} 6... cxd4 {[%clk
0:04:51.2]} 7. cxd4 {[%clk 0:04:41.3]} 7... Nf5 {[%clk 0:04:50.5]} 8. Bb5 {[%clk
0:04:33.9]} 8... Bd7 {[%clk 0:04:48.1]} 9. Nc3 {[%clk 0:04:25.4]} 9... Nxe3
{[%clk 0:04:42.9]} 10. fxe3 {[%clk 0:04:21.6]} 10... Be7 {[%clk 0:04:42]} 11. e4
{[%clk 0:04:05.5]} 11... dxe4 {[%clk 0:04:37.2]} 12. Nxe4 {[%clk 0:04:02.7]}
12... Nxe5 {[%clk 0:04:35.6]} 13. Bxd7+ {[%clk 0:04:01.1]} 13... Nxd7 {[%clk
0:04:33.7]} 14. Qa4 {[%clk 0:03:51.1]} 14... O-O {[%clk 0:04:29.7]} 15. O-O
{[%clk 0:03:46.1]} 15... Nb6 {[%clk 0:04:26.3]} 16. Qc2 {[%clk 0:03:41.3]} 16...
Rc8 {[%clk 0:04:17]} 17. Qd2 {[%clk 0:03:31.8]} 17... Nd5 {[%clk 0:04:10.9]} 18.
Neg5 {[%clk 0:03:25.4]} 18... Bxg5 {[%clk 0:04:09.4]} 19. Nxg5 {[%clk
0:03:24.4]} 19... h6 {[%clk 0:04:07.9]} 20. Nh3 {[%clk 0:02:40.5]} 20... Qc7
{[%clk 0:03:47.2]} 21. Rf3 {[%clk 0:02:17.2]} 21... Qc2 {[%clk 0:03:37]} 22. Qe1
{[%clk 0:01:50]} 22... Qxb2 {[%clk 0:03:25.8]} 23. Rb1 {[%clk 0:01:47.5]} 23...
Qxd4+ {[%clk 0:03:24.5]} 24. Kh1 {[%clk 0:01:35.8]} 24... b6 {[%clk 0:03:18.7]}
25. Rd1 {[%clk 0:01:25.3]} 25... Qb4 {[%clk 0:03:07.5]} 26. Qf2 {[%clk
0:01:19.3]} 26... Rc3 {[%clk 0:02:56.2]} 27. Rf1 {[%clk 0:00:52.7]} 27... Rxf3
{[%clk 0:02:54.4]} 28. Qxf3 {[%clk 0:00:52]} 28... Qc3 {[%clk 0:02:44.6]} 29.
Qf2 {[%clk 0:00:43.2]} 29... Nf6 {[%clk 0:02:38.7]} 30. Nf4 {[%clk 0:00:35.8]}
30... Qc5 {[%clk 0:02:30.6]} 31. Qf3 {[%clk 0:00:26.6]} 31... Rc8 {[%clk
0:02:19.4]} 32. Nd3 {[%clk 0:00:17.9]} 32... Qd5 {[%clk 0:02:13.4]} 33. Qxd5
{[%clk 0:00:11.3]} 33... Nxd5 {[%clk 0:02:11.7]} 34. Ne5 {[%clk 0:00:10.2]}
34... f6 {[%clk 0:02:08.8]} 35. Ng6 {[%clk 0:00:04.8]} 35... Kf7 {[%clk
0:02:07.2]} 36. Nh4 {[%clk 0:00:03.4]} 36... Ne3 {[%clk 0:02:05.1]} 0-1

[Event "Live Chess"]
[Site "Chess.com"]
[Date "2023.05.20"]
[Round "-"]
[White "flyingpuffins"]
[Black "jennybobby44"]
[Result "0-1"]
[WhiteElo "1981"]
[BlackElo "1869"]
[TimeControl "300"]
[EndTime "11:19:43 PDT"]
[Termination "jennybobby44 won by resignation"]

1. e4 {[%clk 0:04:59]} 1... c5 {[%clk 0:04:58.8]} 2. Nf3 {[%clk 0:04:58]} 2...
d6 {[%clk 0:04:58.2]} 3. d4 {[%clk 0:04:56.7]} 3... cxd4 {[%clk 0:04:58.1]} 4.
Nxd4 {[%clk 0:04:56.6]} 4... Nf6 {[%clk 0:04:57.7]} 5. Nc3 {[%clk 0:04:55.8]}
5... a6 {[%clk 0:04:57.2]} 6. Bc4 {[%clk 0:04:54.4]} 6... e6 {[%clk 0:04:56.4]}
7. Bb3 {[%clk 0:04:53.8]} 7... Be7 {[%clk 0:04:55.7]} 8. g4 {[%clk 0:04:52.2]}
8... Qc7 {[%clk 0:04:50.3]} 9. g5 {[%clk 0:04:48.4]} 9... Nfd7 {[%clk
0:04:49.5]} 10. h4 {[%clk 0:04:46.7]} 10... b5 {[%clk 0:04:46.2]} 11. Bxe6
{[%clk 0:04:43.9]} 11... fxe6 {[%clk 0:04:40.9]} 12. Nxe6 {[%clk 0:04:43.1]}
12... Qc4 {[%clk 0:04:26.6]} 13. Nxg7+ {[%clk 0:04:40.1]} 13... Kd8 {[%clk
0:04:25.3]} 14. Nf5 {[%clk 0:04:31.7]} 14... b4 {[%clk 0:04:12.1]} 15. Nxe7
{[%clk 0:03:47.2]} 15... bxc3 {[%clk 0:03:58.2]} 16. Nd5 {[%clk 0:03:18.6]}
16... Qxe4+ {[%clk 0:03:52.1]} 17. Be3 {[%clk 0:03:17.7]} 17... Qxh1+ {[%clk
0:03:50.4]} 0-1

[Event "Live Chess"]
[Site "Chess.com"]
[Date "2023.05.20"]
[Round "-"]
[White "lucaskk818"]
[Black "Ninifu"]
[Result "0-1"]
[WhiteElo "1886"]
[BlackElo "1994"]
[TimeControl "300"]
[EndTime "11:19:56 PDT"]
[Termination "Ninifu won by resignation"]

1. d4 {[%clk 0:04:58.9]} 1... Nf6 {[%clk 0:04:57.5]} 2. c4 {[%clk 0:04:58.3]}
2... g6 {[%clk 0:04:55.5]} 3. Nc3 {[%clk 0:04:56.7]} 3... Bg7 {[%clk 0:04:54.5]}
4. e4 {[%clk 0:04:56.2]} 4... d6 {[%clk 0:04:53.5]} 5. h3 {[%clk 0:04:55.5]}
5... O-O {[%clk 0:04:52.4]} 6. Be3 {[%clk 0:04:54.9]} 6... e5 {[%clk 0:04:51.4]}
7. d5 {[%clk 0:04:53.2]} 7... a5 {[%clk 0:04:48]} 8. Nf3 {[%clk 0:04:51.8]} 8...
Na6 {[%clk 0:04:47.4]} 9. a3 {[%clk 0:04:49.7]} 9... Bd7 {[%clk 0:04:41.1]} 10.
Be2 {[%clk 0:04:48]} 10... Nh5 {[%clk 0:04:36.6]} 11. Qd2 {[%clk 0:04:42.6]}
11... f5 {[%clk 0:04:34.4]} 12. Bg5 {[%clk 0:04:32.6]} 12... Nf6 {[%clk
0:04:31.7]} 13. exf5 {[%clk 0:04:30]} 13... gxf5 {[%clk 0:04:28.6]} 14. O-O-O
{[%clk 0:04:22.9]} 14... Nc5 {[%clk 0:04:27.2]} 15. g4 {[%clk 0:04:15.5]} 15...
Nb3+ {[%clk 0:04:25.6]} 0-1

[Event "Live Chess"]
[Site "Chess.com"]
[Date "2023.05.20"]
[Round "-"]
[White "Missedidea"]
[Black "PiotrD11"]
[Result "1-0"]
[WhiteElo "1632"]
[BlackElo "1323"]
[TimeControl "300"]
[EndTime "11:20:06 PDT"]
[Termination "Missedidea won by checkmate"]

1. d4 {[%clk 0:04:58.5]} 1... d5 {[%clk 0:04:59.9]} 2. c4 {[%clk 0:04:56.7]}
2... e5 {[%clk 0:04:56.1]} 3. dxe5 {[%clk 0:04:52.1]} 3... d4 {[%clk 0:04:56]}
4. e4 {[%clk 0:04:50.2]} 4... Nc6 {[%clk 0:04:48.4]} 5. f4 {[%clk 0:04:48.6]}
5... Bb4+ {[%clk 0:04:40]} 6. Nd2 {[%clk 0:04:43.5]} 6... Nge7 {[%clk
0:04:34.9]} 7. a3 {[%clk 0:04:41.6]} 7... Bxd2+ {[%clk 0:04:28.2]} 8. Bxd2
{[%clk 0:04:39.9]} 8... O-O {[%clk 0:04:27.7]} 9. Nf3 {[%clk 0:04:37]} 9... Bg4
{[%clk 0:04:24.6]} 10. Bd3 {[%clk 0:04:35.1]} 10... Ng6 {[%clk 0:04:23.3]} 11.
O-O {[%clk 0:04:27.6]} 11... f6 {[%clk 0:04:12.7]} 12. Qe1 {[%clk 0:04:07.5]}
12... fxe5 {[%clk 0:04:05.8]} 13. f5 {[%clk 0:04:06]} 13... Bxf3 {[%clk
0:03:58.4]} 14. Rxf3 {[%clk 0:03:59.3]} 14... Nf4 {[%clk 0:03:58.3]} 15. Bxf4
{[%clk 0:03:56.3]} 15... exf4 {[%clk 0:03:56.9]} 16. Rxf4 {[%clk 0:03:55.4]}
16... Ne5 {[%clk 0:03:55.8]} 17. Qe2 {[%clk 0:03:48.1]} 17... c5 {[%clk
0:03:50.9]} 18. Raf1 {[%clk 0:03:41.1]} 18... Rf6 {[%clk 0:03:45.9]} 19. h3
{[%clk 0:03:20.2]} 19... Qc7 {[%clk 0:03:43.9]} 20. g4 {[%clk 0:03:17.3]} 20...
Raf8 {[%clk 0:03:43.4]} 21. g5 {[%clk 0:03:13.3]} 21... Nxd3 {[%clk 0:03:22.7]}
22. Qxd3 {[%clk 0:03:10.2]} 22... Rb6 {[%clk 0:03:17.8]} 23. b3 {[%clk
0:03:00.5]} 23... a5 {[%clk 0:03:13.6]} 24. Rg4 {[%clk 0:02:56]} 24... Qe5
{[%clk 0:02:58.9]} 25. f6 {[%clk 0:02:44.9]} 25... g6 {[%clk 0:02:56.7]} 26. h4
{[%clk 0:02:41.3]} 26... Rf7 {[%clk 0:02:48.4]} 27. Rb1 {[%clk 0:02:30.8]} 27...
Re6 {[%clk 0:02:35.1]} 28. Kg2 {[%clk 0:02:26.9]} 28... b6 {[%clk 0:02:27.7]}
29. b4 {[%clk 0:02:25]} 29... axb4 {[%clk 0:02:24.7]} 30. axb4 {[%clk
0:02:23.3]} 30... Qc7 {[%clk 0:02:10.6]} 31. Ra1 {[%clk 0:02:12.2]} 31... cxb4
{[%clk 0:02:00.7]} 32. Ra8+ {[%clk 0:02:06.8]} 32... Rf8 {[%clk 0:01:58.2]} 33.
Rxf8+ {[%clk 0:02:01.2]} 33... Kxf8 {[%clk 0:01:56.4]} 34. Qb3 {[%clk 0:01:57]}
34... Qc5 {[%clk 0:01:50.1]} 35. Rf4 {[%clk 0:01:35.3]} 35... Kf7 {[%clk
0:01:44.5]} 36. Kf3 {[%clk 0:01:30.8]} 36... Qa5 {[%clk 0:01:33.8]} 37. c5
{[%clk 0:01:25.6]} 37... bxc5 {[%clk 0:01:29.9]} 38. Qd5 {[%clk 0:01:22.7]}
38... Qa3+ {[%clk 0:01:25.3]} 39. Kg4 {[%clk 0:01:20.9]} 39... Qc1 {[%clk
0:01:00.5]} 40. Qd7+ {[%clk 0:01:19]} 40... Kf8 {[%clk 0:00:50.3]} 41. Qg7+
{[%clk 0:01:17.6]} 41... Ke8 {[%clk 0:00:48.8]} 42. f7+ {[%clk 0:01:16.6]} 42...
Kd8 {[%clk 0:00:38.6]} 43. f8=Q+ {[%clk 0:01:15]} 43... Re8 {[%clk 0:00:38.3]}
44. Qxe8+ {[%clk 0:01:11.8]} 44... Kxe8 {[%clk 0:00:36.9]} 45. Rf8# {[%clk
0:01:10.9]} 1-0

[Event "Live Chess"]
[Site "Chess.com"]
[Date "2023.05.20"]
[Round "-"]
[White "Conradical12"]
[Black "Ayush_prahlad_Gupta"]
[Result "0-1"]
[WhiteElo "1544"]
[BlackElo "1816"]
[TimeControl "300"]
[EndTime "11:20:13 PDT"]
[Termination "Ayush_prahlad_Gupta won by resignation"]

1. e4 {[%clk 0:04:56.4]} 1... e5 {[%clk 0:04:59.3]} 2. Nf3 {[%clk 0:04:55.2]}
2... Nc6 {[%clk 0:04:59.2]} 3. Bc4 {[%clk 0:04:54.1]} 3... Bc5 {[%clk
0:04:59.1]} 4. b4 {[%clk 0:04:52.5]} 4... Nxb4 {[%clk 0:04:56.8]} 5. c3 {[%clk
0:04:51.4]} 5... Nc6 {[%clk 0:04:55.7]} 6. O-O {[%clk 0:04:46.3]} 6... d6 {[%clk
0:04:54]} 7. d4 {[%clk 0:04:45.2]} 7... exd4 {[%clk 0:04:53.8]} 8. cxd4 {[%clk
0:04:44.2]} 8... Bb6 {[%clk 0:04:53.7]} 9. Qb3 {[%clk 0:04:41.9]} 9... Qe7
{[%clk 0:04:50.8]} 10. Bg5 {[%clk 0:04:39.3]} 10... f6 {[%clk 0:04:49.2]} 11.
Bxg8 {[%clk 0:04:37.3]} 11... fxg5 {[%clk 0:04:49.1]} 12. Bxh7 {[%clk
0:04:36.5]} 12... Rxh7 {[%clk 0:04:43]} 13. Qg8+ {[%clk 0:04:35.8]} 13... Qf8
{[%clk 0:04:41]} 14. Qxh7 {[%clk 0:04:35.2]} 14... Bd7 {[%clk 0:04:40.1]} 15.
Qg6+ {[%clk 0:04:28.5]} 15... Kd8 {[%clk 0:04:37.9]} 16. d5 {[%clk 0:04:15.1]}
16... Nd4 {[%clk 0:04:36.3]} 17. Nbd2 {[%clk 0:04:02.3]} 17... Ne2+ {[%clk
0:04:30.2]} 18. Kh1 {[%clk 0:03:59.9]} 18... Qe7 {[%clk 0:04:28.9]} 19. Rae1
{[%clk 0:03:49.8]} 19... Nf4 {[%clk 0:04:25.9]} 20. Qxg5 {[%clk 0:03:45]} 20...
Qxg5 {[%clk 0:04:24.3]} 21. Nxg5 {[%clk 0:03:44.9]} 21... Ke7 {[%clk 0:04:22.1]}
22. e5 {[%clk 0:03:42.2]} 22... dxe5 {[%clk 0:04:19.2]} 23. Ngf3 {[%clk
0:03:38.7]} 23... Rh8 {[%clk 0:04:13.2]} 24. Rxe5+ {[%clk 0:03:30.8]} 24... Kf6
{[%clk 0:04:10.3]} 25. Ne4+ {[%clk 0:03:25]} 25... Kf7 {[%clk 0:04:07.9]} 26.
Neg5+ {[%clk 0:03:21.8]} 26... Kg6 {[%clk 0:04:06.1]} 27. g3 {[%clk 0:03:09.1]}
27... Nd3 {[%clk 0:03:58.3]} 28. Re7 {[%clk 0:02:59.3]} 28... Bg4 {[%clk
0:03:47.1]} 29. Nh4+ {[%clk 0:02:31.6]} 29... Kxg5 {[%clk 0:03:38.7]} 30. Rxg7+
{[%clk 0:02:29.7]} 30... Kh5 {[%clk 0:03:29.2]} 31. f4 {[%clk 0:02:02.5]} 31...
Bh3 {[%clk 0:03:25.8]} 32. Rd1 {[%clk 0:01:56.5]} 32... Nf2+ {[%clk 0:03:23.3]}
33. Kg1 {[%clk 0:01:49.1]} 33... Nxd1+ {[%clk 0:03:16.9]} 34. Kh1 {[%clk
0:01:46]} 34... Nf2+ {[%clk 0:03:14.1]} 35. Kg1 {[%clk 0:01:44.7]} 35... Ng4+
{[%clk 0:02:59.7]} 36. Kh1 {[%clk 0:01:42]} 36... Bd4 {[%clk 0:02:47.5]} 37.
Rg5+ {[%clk 0:01:29.8]} 37... Kh6 {[%clk 0:02:42.6]} 38. Nf5+ {[%clk 0:01:28.6]}
38... Kh7 {[%clk 0:02:35.2]} 39. Nxd4 {[%clk 0:01:24.1]} 39... Re8 {[%clk
0:02:28.5]} 40. Ne6 {[%clk 0:01:17]} 40... Nf2+ {[%clk 0:02:20.6]} 41. Kg1
{[%clk 0:01:14.6]} 41... Bxe6 {[%clk 0:02:19.7]} 42. dxe6 {[%clk 0:01:10.6]}
42... Rxe6 {[%clk 0:02:19.6]} 43. Kxf2 {[%clk 0:01:09.6]} 43... Rc6 {[%clk
0:02:17.1]} 44. Rh5+ {[%clk 0:01:06.6]} 44... Kg6 {[%clk 0:02:15.8]} 45. Rg5+
{[%clk 0:01:04.9]} 45... Kf6 {[%clk 0:02:14.6]} 46. h4 {[%clk 0:00:52.8]} 46...
Rc2+ {[%clk 0:02:10.3]} 47. Kf3 {[%clk 0:00:52.3]} 47... Rxa2 {[%clk 0:02:09.5]}
48. Kg4 {[%clk 0:00:51.9]} 48... b6 {[%clk 0:02:05.9]} 49. h5 {[%clk 0:00:50.3]}
49... Rh2 {[%clk 0:02:03.6]} 50. Rg6+ {[%clk 0:00:48.1]} 50... Kf7 {[%clk
0:02:01.2]} 51. Kg5 {[%clk 0:00:45.5]} 51... c5 {[%clk 0:02:00.1]} 52. h6 {[%clk
0:00:43.3]} 52... c4 {[%clk 0:01:57]} 53. Rg7+ {[%clk 0:00:41.6]} 53... Ke6
{[%clk 0:01:54.9]} 54. Rc7 {[%clk 0:00:38]} 54... b5 {[%clk 0:01:50.4]} 55. f5+
{[%clk 0:00:22.3]} 55... Kd6 {[%clk 0:01:48.3]} 56. Rxa7 {[%clk 0:00:19.3]}
56... c3 {[%clk 0:01:46.6]} 57. Ra1 {[%clk 0:00:17.7]} 57... b4 {[%clk
0:01:44.6]} 58. f6 {[%clk 0:00:17]} 58... b3 {[%clk 0:01:43.7]} 59. f7 {[%clk
0:00:15.8]} 59... Ke7 {[%clk 0:01:42.7]} 60. Kg6 {[%clk 0:00:12.8]} 60... b2
{[%clk 0:01:40.3]} 61. Rb1 {[%clk 0:00:10.9]} 61... c2 {[%clk 0:01:38.8]} 62.
Kg7 {[%clk 0:00:10.2]} 62... Rf2 {[%clk 0:01:33.3]} 63. Rxb2 {[%clk 0:00:08.1]}
63... Rxf7+ {[%clk 0:01:30]} 64. Kg6 {[%clk 0:00:05.5]} 64... Rf6+ {[%clk
0:01:28.2]} 65. Kg5 {[%clk 0:00:04.4]} 65... c1=Q+ {[%clk 0:01:26.1]} 66. Kg4
{[%clk 0:00:03.8]} 0-1

[Event "Live Chess"]
[Site "Chess.com"]
[Date "2023.05.20"]
[Round "-"]
[White "manthanit"]
[Black "matt1979"]
[Result "0-1"]
[WhiteElo "951"]
[BlackElo "1439"]
[TimeControl "300"]
[EndTime "11:20:14 PDT"]
[Termination "matt1979 won by resignation"]

1. e4 {[%clk 0:04:45.2]} 1... d6 {[%clk 0:04:57.8]} 2. Nf3 {[%clk 0:04:43.7]}
2... Nf6 {[%clk 0:04:56.2]} 3. Nc3 {[%clk 0:04:40.5]} 3... e5 {[%clk 0:04:52.9]}
4. Bc4 {[%clk 0:04:39.6]} 4... Nbd7 {[%clk 0:04:51.3]} 5. h3 {[%clk 0:04:38.5]}
5... Be7 {[%clk 0:04:39.1]} 6. d3 {[%clk 0:04:36.6]} 6... O-O {[%clk 0:04:37.6]}
7. O-O {[%clk 0:04:35.5]} 7... c6 {[%clk 0:04:32.6]} 8. Ne2 {[%clk 0:04:33]}
8... Qc7 {[%clk 0:04:29]} 9. a4 {[%clk 0:04:30.6]} 9... b6 {[%clk 0:04:27.3]}
10. Ng3 {[%clk 0:04:27.5]} 10... h6 {[%clk 0:04:25]} 11. Nh4 {[%clk 0:04:15.2]}
11... Nxe4 {[%clk 0:04:14.7]} 12. Nhf5 {[%clk 0:03:59]} 12... Ndf6 {[%clk
0:03:54.3]} 13. Nxe7+ {[%clk 0:03:51.7]} 13... Qxe7 {[%clk 0:03:48.6]} 14. dxe4
{[%clk 0:03:51]} 14... Bb7 {[%clk 0:03:35.4]} 15. Bd3 {[%clk 0:03:48.4]} 15...
Rad8 {[%clk 0:03:29.7]} 16. b3 {[%clk 0:03:47.2]} 16... d5 {[%clk 0:03:28.2]}
17. Bb2 {[%clk 0:03:42.2]} 17... dxe4 {[%clk 0:03:25.4]} 18. Nxe4 {[%clk
0:03:34.8]} 18... Nxe4 {[%clk 0:03:23.8]} 19. Re1 {[%clk 0:03:32.2]} 19... f5
{[%clk 0:02:43.5]} 20. f3 {[%clk 0:03:24.9]} 20... Nc5 {[%clk 0:02:34.3]} 21.
Ba3 {[%clk 0:03:18.5]} 21... Qf6 {[%clk 0:02:21.7]} 22. Bc4+ {[%clk 0:03:12.6]}
22... Kh8 {[%clk 0:02:18.1]} 23. Qe2 {[%clk 0:03:10.3]} 23... e4 {[%clk
0:02:02.1]} 24. Rab1 {[%clk 0:03:07]} 24... exf3 {[%clk 0:01:58.2]} 25. Qxf3
{[%clk 0:03:05.7]} 25... Qd4+ {[%clk 0:01:53.1]} 26. Kh1 {[%clk 0:03:00.4]}
26... Ne4 {[%clk 0:01:49]} 27. Bb2 {[%clk 0:02:56.9]} 27... Qc5 {[%clk
0:01:35.2]} 28. Kh2 {[%clk 0:02:14.3]} 28... Qd6+ {[%clk 0:01:30.8]} 29. Kg1
{[%clk 0:02:01.7]} 29... Nd2 {[%clk 0:01:24.6]} 30. Rbd1 {[%clk 0:01:57.9]}
30... Nxf3+ {[%clk 0:01:22.2]} 31. gxf3 {[%clk 0:01:55.4]} 31... Qxd1 {[%clk
0:01:17]} 32. Rxd1 {[%clk 0:01:53.7]} 32... Rxd1+ {[%clk 0:01:15.7]} 33. Kf2
{[%clk 0:01:52.1]} 0-1

[Event "Live Chess"]
[Site "Chess.com"]
[Date "2023.05.20"]
[Round "-"]
[White "Singapourfeuj"]
[Black "BogdanBeleiUkraine"]
[Result "1-0"]
[WhiteElo "2235"]
[BlackElo "1184"]
[TimeControl "300"]
[EndTime "11:20:24 PDT"]
[Termination "Singapourfeuj won by resignation"]

1. d4 {[%clk 0:04:59.2]} 1... d5 {[%clk 0:04:57.9]} 2. Nf3 {[%clk 0:04:58.3]}
2... Bf5 {[%clk 0:04:56.6]} 3. c4 {[%clk 0:04:57.2]} 3... e6 {[%clk 0:04:55.3]}
4. Nc3 {[%clk 0:04:54.5]} 4... c6 {[%clk 0:04:53.5]} 5. cxd5 {[%clk 0:04:49.8]}
5... cxd5 {[%clk 0:04:51.6]} 6. Qb3 {[%clk 0:04:48.8]} 6... b6 {[%clk
0:04:49.3]} 7. Bf4 {[%clk 0:04:45.1]} 7... Qd7 {[%clk 0:04:43.4]} 8. e3 {[%clk
0:04:43.9]} 8... Nf6 {[%clk 0:04:40.2]} 9. Bb5 {[%clk 0:04:42.3]} 9... Nc6
{[%clk 0:04:38]} 10. Ne5 {[%clk 0:04:41.2]} 10... Rc8 {[%clk 0:04:13.2]} 11.
Nxd7 {[%clk 0:04:39.5]} 1-0

[Event "Live Chess"]
[Site "Chess.com"]
[Date "2023.05.20"]
[Round "-"]
[White "whitedjohn"]
[Black "LL220284LL"]
[Result "0-1"]
[WhiteElo "1676"]
[BlackElo "2389"]
[TimeControl "300"]
[EndTime "11:20:32 PDT"]
[Termination "LL220284LL won by checkmate"]

1. e4 {[%clk 0:04:56.8]} 1... d6 {[%clk 0:04:58]} 2. d4 {[%clk 0:04:52.7]} 2...
g6 {[%clk 0:04:57]} 3. Nc3 {[%clk 0:04:49.4]} 3... Bg7 {[%clk 0:04:55.1]} 4. Bc4
{[%clk 0:04:44.4]} 4... c6 {[%clk 0:04:51.1]} 5. Be3 {[%clk 0:04:41.2]} 5... Nf6
{[%clk 0:04:48.5]} 6. Qd2 {[%clk 0:04:31.2]} 6... Nxe4 {[%clk 0:04:39.1]} 7.
Nxe4 {[%clk 0:04:26.9]} 7... d5 {[%clk 0:04:38.1]} 8. Bd3 {[%clk 0:04:18]} 8...
dxe4 {[%clk 0:04:37.3]} 9. Bxe4 {[%clk 0:04:16.9]} 9... O-O {[%clk 0:04:36.5]}
10. O-O-O {[%clk 0:04:14.4]} 10... Re8 {[%clk 0:04:32.7]} 11. Nf3 {[%clk
0:04:04.2]} 11... Nd7 {[%clk 0:04:31.8]} 12. h4 {[%clk 0:03:52.6]} 12... Nf6
{[%clk 0:04:30.8]} 13. Bd3 {[%clk 0:03:45.9]} 13... Bg4 {[%clk 0:04:23]} 14. Bc4
{[%clk 0:03:35.7]} 14... Nd5 {[%clk 0:04:21.1]} 15. Bh6 {[%clk 0:03:28]} 15...
Bf6 {[%clk 0:04:16.3]} 16. Bg5 {[%clk 0:03:22.4]} 16... Bg7 {[%clk 0:04:13.8]}
17. Rde1 {[%clk 0:03:13.5]} 17... b5 {[%clk 0:04:06.7]} 18. Bb3 {[%clk
0:03:09.3]} 18... a5 {[%clk 0:04:05.6]} 19. c3 {[%clk 0:03:05.9]} 19... a4
{[%clk 0:04:02.4]} 20. Bc2 {[%clk 0:03:03]} 20... a3 {[%clk 0:04:01.3]} 21. b3
{[%clk 0:03:00.1]} 21... b4 {[%clk 0:03:59.5]} 22. cxb4 {[%clk 0:02:44.9]} 22...
Qb6 {[%clk 0:03:56.7]} 23. Kb1 {[%clk 0:02:35.9]} 23... Nxb4 {[%clk 0:03:54.6]}
24. Ne5 {[%clk 0:02:27.7]} 24... Nxc2 {[%clk 0:03:50]} 25. Qxc2 {[%clk
0:02:23.9]} 25... Bf5 {[%clk 0:03:48.6]} 26. Nd3 {[%clk 0:02:18.8]} 26... Qxd4
{[%clk 0:03:47.6]} 27. Qxc6 {[%clk 0:02:12.4]} 27... Bxd3+ {[%clk 0:03:45.3]}
28. Kc1 {[%clk 0:02:09.6]} 28... Rac8 {[%clk 0:03:42.5]} 29. Rxe7 {[%clk
0:02:06]} 29... Rxc6+ {[%clk 0:03:41.5]} 30. Kd1 {[%clk 0:02:03.5]} 30... Qa1+
{[%clk 0:03:39.5]} 31. Kd2 {[%clk 0:02:01.4]} 31... Qc3+ {[%clk 0:03:38.8]} 32.
Ke3 {[%clk 0:01:58.6]} 32... Rxe7+ {[%clk 0:03:36.5]} 33. Kf3 {[%clk 0:01:57]}
33... Be4+ {[%clk 0:03:35.2]} 34. Kg4 {[%clk 0:01:52.7]} 34... f5+ {[%clk
0:03:33.7]} 35. Kf4 {[%clk 0:01:48.9]} 35... Be5# {[%clk 0:03:33.6]} 0-1